bitfinex/quotes_BTCUSD_20241124
["timestamp","ask_amount","ask_price","bid_price","bid_amount"]
[1732431611228,0.07462922,98148.0,98144.0,0.15]
[1732431611690,0.001719,98151.0,98146.0,0.15]
[1732431611942,0.001719,98151.0,98148.0,0.15]
[1732431612155,0.001719,98151.0,98150.0,0.15]
[1732431612604,0.001719,98151.0,98150.0,1.783667]
[1732431612923,0.001719,98151.0,98150.0,0.15]
[1732431613034,0.001719,98151.0,98150.0,1.690492]
[1732431613278,0.001719,98151.0,98150.0,1.781775]
[1732431616565,0.412659,98185.0,98151.0,0.15]
[1732431616810,0.412659,98184.0,98151.0,2.360383]
[1732431617085,0.412659,98184.0,98153.0,0.15]
[1732431617274,0.412659,98184.0,98154.0,2.210383]
[1732431617484,0.412659,98184.0,98155.0,2.360383]
[1732431617646,0.412659,98184.0,98157.0,0.15]
[1732431617937,0.412659,98184.0,98159.0,0.15]
[1732431618695,0.00450074,98183.0,98159.0,0.15]
[1732431619290,0.00450074,98183.0,98143.0,0.15101876]
[1732431619494,0.00450074,98183.0,98154.0,0.04224423]
[1732431619710,0.00450074,98183.0,98145.0,0.15101876]
[1732431619915,0.0768,98174.0,98156.0,0.15]
[1732431620121,0.0768,98172.0,98158.0,0.15]
[1732431620332,0.0768,98172.0,98159.0,2.152956]
[1732431620593,0.0768,98172.0,98160.0,0.15]
[1732431621005,0.00450055,98171.0,98160.0,0.15]
[1732431621239,0.0498,98169.0,98160.0,0.15]
[1732431621457,0.0827,98168.0,98160.0,0.15]
[1732431621652,0.0872005,98168.0,98145.0,0.00101875]
[1732431621875,0.0872005,98168.0,98147.0,0.15]
[1732431622117,0.0872005,98168.0,98149.0,0.15]
[1732431622326,0.0827,98168.0,98151.0,0.15]
[1732431622530,0.0827,98168.0,98153.0,0.15]
[1732431622951,0.0827,98168.0,98155.0,0.15]
[1732431623171,0.0827,98168.0,98156.0,0.89165]
[1732431623368,0.0827,98168.0,98156.0,0.764882]
[1732431623593,0.0498,98167.0,98157.0,0.541601]
[1732431623797,0.0827,98166.0,98157.0,0.15]
[1732431624006,0.0827,98164.0,98157.0,0.15]
[1732431624459,0.00449943,98163.0,98158.0,0.334354]
[1732431624689,0.1325,98162.0,98159.0,0.893714]
[1732431624898,0.1325,98162.0,98159.0,0.15]
[1732431625098,0.0044994,98161.0,98159.0,0.15]
[1732431625301,0.1325,98162.0,98159.0,0.15]
[1732431625786,0.1325,98162.0,98148.0,0.00101876]
[1732431625994,0.1325,98162.0,98154.0,0.15]
[1732431626231,0.1325,98162.0,98155.0,0.440351]
[1732431626438,0.1325,98162.0,98151.0,0.15]
[1732431626649,0.1325,98162.0,98152.0,0.896366]
[1732431627292,0.1325,98162.0,98153.0,0.15]
[1732431627487,0.1325,98162.0,98153.0,1.033325]
[1732431627698,0.1325,98162.0,98154.0,1.111078]
[1732431627945,0.1325,98162.0,98155.0,0.430504]
[1732431628168,0.1325,98162.0,98156.0,0.15]
[1732431628376,0.1325,98162.0,98158.0,0.15]
[1732431628589,0.1325,98162.0,98160.0,0.15]
[1732431629657,0.1325,98162.0,98147.0,0.04207056]
[1732431629861,0.1325,98162.0,98149.0,0.15]
[1732431630298,0.1325,98162.0,98151.0,0.15]
[1732431630524,0.1325,98162.0,98153.0,0.15]
[1732431630751,0.1325,98162.0,98155.0,0.15]
[1732431630934,0.1325,98162.0,98157.0,0.15]
[1732431631365,0.1325,98162.0,98159.0,0.15]
[1732431632732,0.1325,98162.0,98147.0,0.04207056]
[1732431632986,0.1325,98162.0,98149.0,0.15]
[1732431633432,0.0827,98162.0,98151.0,0.15]
[1732431633642,0.0827,98162.0,98153.0,0.15]
[1732431633853,0.0827,98162.0,98155.0,0.15]
[1732431634067,0.0827,98162.0,98157.0,0.15]
[1732431634279,0.0827,98162.0,98158.0,1.315282]
[1732431634499,0.0827,98162.0,98159.0,0.15]
[1732431634932,0.00447404,98161.0,98159.0,0.15]
[1732431635575,0.00447404,98161.0,98150.0,0.0485]
[1732431635844,0.00447404,98161.0,98152.0,0.15]
[1732431636069,0.0827,98162.0,98152.0,0.15]
[1732431636279,0.0827,98162.0,98154.0,0.15]
[1732431636716,0.0827,98162.0,98156.0,0.15]
[1732431636937,0.0827,98162.0,98158.0,0.15]
[1732431637140,0.0827,98162.0,98159.0,1.413274]
[1732431637355,0.0827,98162.0,98160.0,0.15]
[1732431638003,0.00447827,98161.0,98160.0,0.15]
[1732431638402,0.00440793,98161.0,98160.0,0.15]
[1732431638599,0.00440793,98161.0,98151.0,0.000859]
[1732431638799,0.00440793,98161.0,98152.0,0.891387]
[1732431638981,0.0827,98162.0,98145.0,1.696447]
[1732431639182,0.0485,98161.0,98145.0,1.696447]
[1732431639549,0.0485,98161.0,98144.0,0.12135485]
[1732431639746,0.0485,98161.0,98145.0,1.316227]
[1732431639984,0.00446653,98160.0,98145.0,1.299865]
[1732431640183,0.0485,98161.0,98146.0,1.002307]
[1732431640393,0.0485,98161.0,98145.0,1.579865]
[1732431640846,0.0485,98161.0,98142.0,0.15]
[1732431641067,0.0485,98161.0,98144.0,0.15]
[1732431641281,0.0485,98161.0,98146.0,0.15]
[1732431641502,0.0485,98161.0,98148.0,0.15]
[1732431641964,0.0485,98161.0,98150.0,0.15]
[1732431642183,0.0485,98161.0,98152.0,0.15]
[1732431642634,0.0485,98161.0,98154.0,0.15]
[1732431642862,0.0485,98161.0,98155.0,0.343676]
[1732431643111,0.0485,98161.0,98156.0,0.110553]
[1732431643324,0.00446653,98160.0,98156.0,0.15]
[1732431643554,0.00446653,98160.0,98157.0,0.110553]
[1732431649087,0.00446653,98160.0,98157.0,0.1114122]
[1732431649231,0.00446653,98160.0,98158.0,0.632613]
[1732431649437,0.0485,98161.0,98158.0,0.352613]
[1732431649657,0.0485,98161.0,98158.0,2.000522]
[1732431650066,0.0485,98161.0,98157.0,0.0008592]
[1732431650289,0.00667637,98160.0,98158.0,2.000522]
[1732431650511,0.0485,98161.0,98158.0,2.000522]
[1732431651342,0.0485,98161.0,98159.0,1.961936]
[1732431651548,0.0485,98161.0,98158.0,2.210383]
[1732431652411,0.0485,98161.0,98159.0,1.920905]
[1732431652634,0.0485,98161.0,98157.0,0.0008592]
[1732431652635,0.0485,98161.0,98158.0,1.938636]
[1732431653259,0.0485,98161.0,98158.0,1.678558]
[1732431653475,0.0485,98161.0,98158.0,1.652971]
[1732431653687,0.0485,98161.0,98158.0,1.652909]
[1732431653918,0.0485,98161.0,98159.0,1.635178]
[1732431654133,0.0485,98161.0,98160.0,1.859352]
[1732431654346,0.0485,98161.0,98158.0,1.932909]
[1732431654735,0.0485,98161.0,98158.0,1.652909]
[1732431654906,0.0485,98161.0,98159.0,1.635178]
[1732431655127,0.0485,98161.0,98160.0,1.859352]
[1732431655347,0.0485,98161.0,98158.0,1.933909]
[1732431656581,0.0485,98161.0,98158.0,1.919223]
[1732431656786,0.0485,98161.0,98158.0,1.642197]
[1732431657653,0.0495,98167.0,98159.0,0.15]
[1732431657864,0.0495,98167.0,98161.0,0.15]
[1732431658083,0.0495,98167.0,98162.0,2.210383]
[1732431658837,0.0495,98167.0,98163.0,0.15]
[1732431659064,0.0495,98167.0,98164.0,2.210383]
[1732431659286,0.0495,98167.0,98163.0,0.15]
[1732431659477,0.0495,98167.0,98164.0,2.06788]
[1732431660808,0.0495,98167.0,98164.0,1.711908]
[1732431661025,0.0495,98167.0,98164.0,1.972908]
[1732431661253,0.0495,98167.0,98157.0,0.0008592]
[1732431661481,0.001719,98161.0,98159.0,0.15]
[1732431661691,0.001719,98161.0,98160.0,1.752051]
[1732431664190,0.001719,98161.0,98160.0,1.684871]
[1732431664423,0.001719,98161.0,98160.0,1.315552]
[1732431664843,0.001719,98161.0,98160.0,0.620974]
[1732431665931,0.001719,98161.0,98160.0,0.66178169]
[1732431667252,0.133719,98161.0,98160.0,0.04080769]
[1732431667705,0.132,98160.0,98157.0,0.0008592]
[1732431667902,0.132,98160.0,98157.0,0.04249591]
[1732431668117,0.00446563,98159.0,98157.0,0.0008592]
[1732431668333,0.132,98158.0,98157.0,0.0008592]
[1732431668555,0.13646561,98158.0,98157.0,0.1508592]
[1732431668771,0.13646561,98158.0,98157.0,0.2576622]
[1732431674167,0.13867356,98158.0,98157.0,0.0008592]
[1732431674378,0.127024,98158.0,98157.0,0.0008592]
[1732431675421,0.127024,98158.0,98157.0,0.0007732]
[1732431681569,0.150024,98158.0,98157.0,0.0007732]
[1732431683319,0.150024,98158.0,98142.0,0.00421134]
[1732431683528,0.125,98156.0,98143.0,0.546168]
[1732431683733,0.125,98156.0,98141.0,0.80248]
[1732431683942,0.125,98156.0,98141.0,0.64036]
[1732431684168,0.0752,98153.0,98141.0,0.64135]
[1732431684390,0.0498,98152.0,98141.0,0.64135]
[1732431686638,0.0498,98152.0,98142.0,0.15]
[1732431686835,0.0498,98152.0,98144.0,0.15]
[1732431688225,0.0498,98152.0,98140.0,0.04229295]
[1732431688451,0.0498,98152.0,98141.0,0.510242]
[1732431688684,0.0498,98152.0,98142.0,0.671019]
[1732431688876,0.0498,98152.0,98143.0,0.485848]
[1732431689173,0.0498,98152.0,98144.0,0.15]
[1732431689421,0.0498,98152.0,98142.0,0.15]
[1732431689635,0.0498,98152.0,98144.0,0.15]
[1732431689814,0.0498,98152.0,98142.0,0.15]
[1732431690045,0.0498,98152.0,98144.0,0.15]
[1732431691200,0.0498,98152.0,98140.0,0.04229295]
[1732431691431,0.0498,98152.0,98142.0,0.15]
[1732431691649,0.0752,98151.0,98144.0,0.15]
[1732431691856,0.0498,98150.0,98145.0,0.30567]
[1732431695183,0.0498,98150.0,98146.0,0.15]
[1732431695587,0.0498,98150.0,98147.0,0.30566]
[1732431699243,0.046,98148.0,98147.0,0.45566]
[1732431700117,0.1229,98148.0,98147.0,0.30566]
[1732431712090,0.124619,98148.0,98147.0,0.30566]
[1732431748273,0.001719,98152.0,98148.0,0.007834]
[1732431751382,0.1288,98151.0,98148.0,0.007834]
[1732431751667,0.0461,98150.0,98148.0,0.007834]
[1732431755150,0.04576251,98150.0,98148.0,0.007834]
[1732431757521,0.04748151,98150.0,98148.0,0.007834]
[1732431759002,0.001719,98150.0,98149.0,0.30566]
[1732431762209,0.024719,98150.0,98149.0,0.30566]
[1732431763582,0.072619,98150.0,98149.0,0.30566]
[1732431771026,0.023,98149.0,98142.0,9.835e-05]
[1732431771311,0.023,98149.0,98148.0,0.0008595]
[1732431783521,0.1550357,98149.0,98148.0,0.0008595]
[1732431783733,0.3550357,98149.0,98148.0,0.0008595]
[1732431784616,0.3505,98149.0,98148.0,0.0008595]
[1732431787414,0.76143421,98149.0,98148.0,0.0008595]
[1732431789914,0.76343421,98149.0,98148.0,0.0008595]
[1732431790409,0.76143421,98149.0,98148.0,0.0008595]
[1732431791273,0.76343421,98149.0,98148.0,0.0008595]
[1732431791926,0.96343421,98149.0,98148.0,0.0008595]
[1732431792143,1.21544848,98149.0,98148.0,0.0008595]
[1732431795271,1.21630788,98149.0,98148.0,0.0008595]
[1732431796505,0.7035,98143.0,98142.0,9.835e-05]
[1732431796696,1.11357471,98143.0,98142.0,9.835e-05]
[1732431800630,1.21744276,98143.0,98142.0,9.835e-05]
[1732431800859,1.31945703,98143.0,98142.0,9.835e-05]
[1732431801524,1.36029122,98143.0,98142.0,9.835e-05]
[1732431806046,1.25642317,98143.0,98142.0,9.835e-05]
[1732431806683,1.36322317,98143.0,98142.0,9.835e-05]
[1732431806896,1.25642317,98143.0,98142.0,9.835e-05]
[1732431808257,0.81197636,98141.0,98140.0,0.0008594]
[1732431808471,1.21549063,98141.0,98140.0,0.0008594]
[1732431811393,0.96147636,98141.0,98140.0,0.0008594]
[1732431811611,0.63297636,98141.0,98140.0,0.0008594]
[1732431811842,0.83965166,98141.0,98140.0,0.0008594]
[1732431814255,0.94075024,98141.0,98140.0,0.0008594]
[1732431814867,0.98965166,98141.0,98140.0,0.0008594]
[1732431815123,0.99165166,98141.0,98140.0,0.0008594]
[1732431815555,1.04115166,98141.0,98140.0,0.0008594]
[1732431815985,1.12015166,98141.0,98140.0,0.0008594]
[1732431817223,1.11795063,98141.0,98140.0,0.0008594]
[1732431819877,1.2199649,98141.0,98140.0,0.0008594]
[1732431820548,1.2199649,98141.0,98118.0,0.0017194]
[1732431820549,0.425,98138.0,98118.0,0.0017194]
[1732431820994,0.42948753,98138.0,98118.0,0.0017194]
[1732431823335,0.83860449,98138.0,98118.0,0.0017194]
[1732431827059,0.98860449,98138.0,98118.0,0.0017194]
[1732431832459,0.98860449,98138.0,98122.0,0.0498]
[1732431832693,0.96360449,98138.0,98124.0,0.0751]
[1732431834422,0.98660449,98138.0,98124.0,0.0751]
[1732431842911,0.96360449,98138.0,98124.0,0.0751]
[1732431843141,0.96360449,98138.0,98133.0,0.0464]
[1732431845471,0.96360449,98138.0,98128.0,0.0464]
[1732431847398,0.96360449,98138.0,98124.0,0.0751]
[1732431849267,0.81360449,98138.0,98124.0,0.0751]
[1732431850430,0.40448753,98138.0,98124.0,0.0751]
[1732431853059,0.20448753,98138.0,98136.0,0.0456]
[1732431853288,0.00448753,98138.0,98136.0,0.0456]
[1732431853527,0.00448753,98138.0,98137.0,0.03452973]
[1732431853745,0.0008595,98140.0,98138.0,0.0786]
[1732431853972,0.0046852,98139.0,98138.0,0.0786]
[1732431854193,0.0008594,98142.0,98138.0,0.0786]
[1732431854442,0.00468523,98141.0,98138.0,0.0786]
[1732431855410,0.00468523,98141.0,98138.0,0.11997494]
[1732431856672,0.00468523,98141.0,98139.0,0.0475]
[1732431856895,0.0008594,98142.0,98139.0,0.0475]
[1732431859502,0.0008594,98142.0,98140.0,0.0766]
[1732431859912,0.0008594,98142.0,98141.0,0.0475]
[1732431862109,0.0008594,98142.0,98130.0,0.20526898]
[1732431862556,0.0008594,98142.0,98131.0,0.3057]
[1732431863592,0.0008594,98142.0,98132.0,0.15]
[1732431863816,0.0008594,98142.0,98133.0,0.30571]
[1732431864910,0.0759,98141.0,98133.0,0.30571]
[1732431865139,0.08065673,98141.0,98133.0,0.30571]
[1732431867524,0.08065673,98141.0,98134.0,0.15]
[1732431872450,0.28065673,98141.0,98134.0,0.15]
[1732431877482,0.28151623,98141.0,98134.0,0.15]
[1732431880003,0.00561623,98141.0,98135.0,2.24113969]
[1732431880221,0.0008595,98141.0,98136.0,1.125022]
[1732431880430,0.0008595,98141.0,98138.0,0.15]
[1732431880643,0.0008595,98141.0,98137.0,2.44715269]
[1732431880644,0.0008595,98141.0,98140.0,0.15]
[1732431880848,0.0008595,98141.0,98140.0,2.51630376]
[1732431881103,0.0008595,98141.0,98140.0,2.69682969]
[1732431881985,0.0008595,98141.0,98140.0,2.38740569]
[1732431885095,0.0008595,98141.0,98140.0,2.42841319]
[1732431887157,0.0008595,98141.0,98140.0,2.47481319]
[1732431887329,0.0008595,98141.0,98140.0,2.49381319]
[1732431887596,0.001719,98150.0,98140.0,2.49381319]
[1732431887796,0.001719,98150.0,98142.0,0.15]
[1732431888029,0.001719,98150.0,98144.0,0.15]
[1732431888236,0.001719,98150.0,98145.0,2.51707167]
[1732431888448,0.001719,98150.0,98146.0,2.210383]
[1732431888668,0.001719,98150.0,98147.0,0.30667867]
[1732431888919,0.001719,98150.0,98148.0,2.081887]
[1732431889137,0.001719,98150.0,98148.0,2.370499]
[1732431890143,0.001719,98150.0,98148.0,2.520499]
[1732431893157,0.001719,98150.0,98148.0,2.54404583]
[1732431898843,0.001719,98150.0,98148.0,0.47920683]
[1732431899486,0.001719,98150.0,98148.0,0.47771916]
[1732431900799,0.001719,98150.0,98148.0,2.18661916]
[1732431901007,0.001719,98150.0,98148.0,0.47771916]
[1732431901208,0.001719,98150.0,98148.0,2.18661916]
[1732431901413,0.001719,98150.0,98148.0,0.47771916]
[1732431902927,0.001719,98150.0,98148.0,2.24518916]
[1732431906699,0.001719,98150.0,98148.0,1.90838126]
[1732431907357,0.001719,98150.0,98148.0,2.21404126]
[1732431907778,0.001719,98150.0,98149.0,0.03041881]
[1732431908009,0.001719,98150.0,98149.0,2.54748044]
[1732431908220,0.001719,98150.0,98149.0,2.54646181]
[1732431908595,0.001719,98150.0,98149.0,2.69646181]
[1732431910784,0.001719,98150.0,98149.0,2.29454481]
[1732431911888,0.076919,98150.0,98149.0,2.29454481]
[1732431912974,0.076919,98150.0,98149.0,1.65907681]
[1732431913454,0.076919,98150.0,98149.0,0.83042781]
[1732431916353,0.076919,98150.0,98149.0,1.22211981]
[1732431916570,0.076919,98150.0,98149.0,1.03304481]
[1732431918485,0.001719,98150.0,98149.0,1.03304481]
[1732431919401,0.001719,98150.0,98149.0,1.05604481]
[1732431920754,0.00082801,98150.0,98149.0,1.05604481]
[1732431922132,0.0017188,98158.0,98150.0,0.175]
[1732431922345,0.0017188,98158.0,98151.0,0.33708742]
[1732431922565,0.0017188,98158.0,98152.0,2.383383]
[1732431922790,0.0017188,98158.0,98154.0,0.173]
[1732431923009,0.0017188,98158.0,98156.0,0.173]
[1732431923299,0.0017188,98158.0,98157.0,2.72045042]
[1732431923499,0.0017188,98158.0,98157.0,2.71943181]
[1732431924479,0.001719,98161.0,98158.0,0.173]
[1732431924704,0.001719,98161.0,98160.0,0.023]
[1732431924923,0.001719,98161.0,98160.0,2.689003]
[1732431925111,0.001719,98161.0,98160.0,2.71942181]
[1732431926246,0.001719,98161.0,98160.0,2.689003]
[1732431926961,0.001719,98161.0,98160.0,0.47862]
[1732431928396,0.001719,98161.0,98160.0,2.110314]
[1732431931828,0.001719,98161.0,98160.0,1.262316]
[1732431932072,0.047419,98161.0,98160.0,1.262316]
[1732431932340,0.047419,98161.0,98160.0,1.235381]
[1732431936901,0.04360499,98161.0,98160.0,1.235381]
[1732431939372,0.04360499,98161.0,98160.0,0.47862]
[1732431939596,0.04360499,98161.0,98160.0,1.698878]
[1732431939820,0.04360499,98161.0,98160.0,0.730081]
[1732431939987,0.04360499,98161.0,98160.0,0.659326]
[1732431944472,0.04360499,98161.0,98160.0,0.636326]
[1732431944677,0.12530499,98161.0,98160.0,0.557454]
[1732431948071,0.12616439,98161.0,98160.0,0.557454]
[1732431952052,0.12293333,98161.0,98160.0,0.557454]
[1732431952263,0.0825594,98161.0,98160.0,0.557454]
[1732431955104,0.1296594,98161.0,98160.0,0.45562]
[1732431955540,0.1296594,98161.0,98160.0,1.716572]
[1732431956430,0.1296594,98161.0,98160.0,1.691021]
[1732431956636,0.1296594,98161.0,98160.0,1.411021]
[1732431958426,0.1296594,98161.0,98160.0,1.1543865]
[1732431958642,0.1296594,98161.0,98160.0,1.0947705]
[1732431960232,0.1296594,98161.0,98160.0,1.0964893]
[1732431960653,0.1296594,98161.0,98160.0,1.2464893]
[1732431965260,0.1296594,98161.0,98160.0,1.24563049]
[1732431970578,0.1296594,98161.0,98160.0,1.07750649]
[1732431976522,0.1296594,98161.0,98160.0,1.38338949]
[1732431981533,0.0825594,98161.0,98160.0,1.40638949]
[1732431982666,0.0825594,98161.0,98160.0,1.27889649]
[1732431983839,0.0825594,98161.0,98160.0,1.22889649]
[1732431984936,0.0825594,98161.0,98160.0,1.20589649]
[1732431985711,0.0825594,98161.0,98160.0,1.18973349]
[1732431988831,0.0825594,98161.0,98160.0,0.97869649]
[1732431989506,0.0825594,98161.0,98160.0,0.29984549]
[1732431989741,0.1299594,98161.0,98160.0,0.29984549]
[1732431997168,0.1299594,98161.0,98160.0,0.52085649]
[1732431997593,0.1299594,98161.0,98160.0,0.48065649]
[1732431998391,0.1299594,98161.0,98160.0,0.29984549]
[1732432001330,0.1299594,98161.0,98160.0,1.69797849]
[1732432002256,0.1299594,98161.0,98160.0,1.45438949]
[1732432003722,0.12308319,98161.0,98160.0,1.45438949]
[1732432005724,0.12308319,98161.0,98160.0,1.45338249]
[1732432007958,0.12308319,98161.0,98160.0,0.29984549]
[1732432010840,0.12308319,98161.0,98160.0,0.75149349]
[1732432011074,0.12308319,98161.0,98160.0,0.29984549]
[1732432011290,0.12308319,98161.0,98160.0,0.75149349]
[1732432011526,0.12308319,98161.0,98160.0,0.74649849]
[1732432012675,0.12308319,98161.0,98160.0,0.70655349]
[1732432013315,0.12308319,98161.0,98160.0,0.74728967]
[1732432015175,0.12308319,98161.0,98160.0,0.34058167]
[1732432016565,0.12308319,98161.0,98160.0,0.29984549]
[1732432017219,0.12308319,98161.0,98160.0,0.50849249]
[1732432021939,0.07568319,98161.0,98160.0,0.50849249]
[1732432022597,0.07568319,98161.0,98160.0,0.55022148]
[1732432037432,0.07568319,98161.0,98160.0,0.34157448]
[1732432037877,0.07568319,98161.0,98160.0,1.21740048]
[1732432038086,0.07568319,98161.0,98160.0,1.25855848]
[1732432040308,0.07568319,98161.0,98160.0,1.22031248]
[1732432042022,0.12178319,98161.0,98160.0,1.22031248]
[1732432042265,0.12178319,98161.0,98160.0,1.00083248]
[1732432046308,0.07568319,98161.0,98160.0,1.00083248]
[1732432047872,0.07568319,98161.0,98160.0,0.34157448]
[1732432048088,0.07568319,98161.0,98160.0,2.36996648]
[1732432048311,0.07568319,98161.0,98160.0,0.34157448]
[1732432048516,0.07568319,98161.0,98160.0,2.37994648]
[1732432048734,0.07568319,98161.0,98160.0,2.40258748]
[1732432048945,0.07568319,98161.0,98160.0,2.36996648]
[1732432049657,0.0008594,98161.0,98160.0,2.36996648]
[1732432049876,0.0008594,98161.0,98160.0,2.12483248]
[1732432051068,0.0008594,98161.0,98160.0,2.09928248]
[1732432052659,0.0008594,98161.0,98160.0,2.06341648]
[1732432058723,0.0008594,98161.0,98160.0,2.14198048]
[1732432058953,0.0008594,98161.0,98160.0,2.10757848]
[1732432059139,0.0008594,98161.0,98160.0,1.92891248]
[1732432059733,0.04774981,98162.0,98161.0,0.15]
[1732432059929,0.04774981,98162.0,98161.0,2.14395]
[1732432060461,0.04774981,98162.0,98161.0,2.108913]
[1732432060632,0.12394981,98162.0,98161.0,0.721055]
[1732432060979,0.12357919,98162.0,98161.0,0.721055]
[1732432064802,0.12443859,98162.0,98161.0,0.721055]
[1732432075243,0.12443859,98162.0,98161.0,0.47705208]
[1732432077464,0.12443859,98162.0,98161.0,0.62705208]
[1732432079739,0.12443859,98162.0,98161.0,0.51910708]
[1732432083602,0.12443859,98162.0,98161.0,0.62107508]
[1732432083987,0.12443859,98162.0,98161.0,1.05336508]
[1732432086699,0.12443859,98162.0,98161.0,1.08445186]
[1732432086927,0.0770594,98162.0,98161.0,1.08445186]
[1732432088519,0.0770594,98162.0,98161.0,1.08617066]
[1732432090046,0.0770594,98162.0,98161.0,0.78293082]
[1732432090723,0.0770594,98162.0,98161.0,1.41772782]
[1732432091387,0.0770594,98162.0,98161.0,1.39217682]
[1732432093858,0.0001463,98196.0,98162.0,0.15]
[1732432094087,0.0001463,98196.0,98164.0,0.15]
[1732432094293,0.0001463,98196.0,98166.0,0.15]
[1732432094498,0.0001463,98196.0,98168.0,0.15]
[1732432094921,0.2,98200.0,98168.0,0.15]
[1732432096881,0.0474,98198.0,98168.0,0.15]
[1732432097134,0.0474,98196.0,98168.0,0.15]
[1732432097343,0.0764,98195.0,98168.0,0.15]
[1732432097514,0.2,98200.0,98168.0,0.15]
[1732432097515,0.0474,98192.0,98170.0,0.15]
[1732432097744,0.0764,98189.0,98170.0,0.15]
[1732432097924,0.0764,98187.0,98170.0,0.15]
[1732432098271,0.0764,98185.0,98170.0,0.15]
[1732432098498,0.0474,98184.0,98170.0,0.15]
[1732432098710,0.0474,98180.0,98170.0,0.15]
[1732432098935,0.0764,98178.0,98170.0,0.15]
[1732432120303,0.0764,98178.0,98170.0,0.19184768]
[1732432121720,0.0764,98178.0,98169.0,0.69566784]
[1732432124884,0.0764,98178.0,98169.0,0.73631808]
[1732432125547,0.0764,98178.0,98170.0,0.15]
[1732432128626,0.0474,98183.0,98172.0,0.15]
[1732432128840,0.081,98185.0,98174.0,0.15]
[1732432129568,0.081,98185.0,98175.0,0.00101852]
[1732432130217,0.081,98185.0,98173.0,0.00101847]
[1732432130446,0.081,98185.0,98174.0,0.15101847]
[1732432130665,0.081,98185.0,98176.0,0.15]
[1732432130866,0.081,98185.0,98178.0,0.15]
[1732432131067,0.081,98185.0,98180.0,0.15]
[1732432132764,0.081,98185.0,98181.0,0.040637]
[1732432134827,0.081,98185.0,98181.0,0.04165548]
[1732432135063,0.081,98185.0,98181.0,0.040637]
[1732432135737,0.0816,98191.0,98181.0,0.040637]
[1732432137056,0.0816,98191.0,98183.0,0.15]
[1732432138776,0.0824593,98191.0,98185.0,0.15]
[1732432138995,0.0824593,98191.0,98187.0,0.15]
[1732432139195,0.0824593,98191.0,98186.0,1.0249]
[1732432139196,0.0008593,98191.0,98189.0,0.15]
[1732432139822,0.0008593,98191.0,98190.0,1.0249]
[1732432140789,0.0008593,98191.0,98190.0,1.1749]
[1732432141003,0.0008593,98191.0,98190.0,2.338229]
[1732432142548,0.0008593,98191.0,98190.0,1.420262]
[1732432143226,0.0008593,98191.0,98190.0,1.1749]
[1732432143870,0.0767593,98191.0,98190.0,1.1749]
[1732432146536,0.0767593,98191.0,98190.0,1.0249]
[1732432150616,0.1231593,98191.0,98190.0,1.0249]
[1732432160386,0.0008593,98191.0,98190.0,1.05554396]
[1732432160614,0.0008593,98191.0,98190.0,1.20554396]
[1732432160845,0.0008593,98191.0,98190.0,2.19563796]
[1732432161092,0.0008593,98191.0,98190.0,1.20554396]
[1732432161346,0.0008593,98191.0,98190.0,2.13604796]
[1732432161806,0.0008593,98191.0,98190.0,1.98604796]
[1732432163802,0.0008593,98191.0,98190.0,1.25324796]
[1732432164683,0.0008593,98191.0,98190.0,1.05554396]
[1732432165612,0.0008593,98191.0,98190.0,0.73892304]
[1732432168987,0.0008593,98191.0,98190.0,0.70827908]
[1732432169692,0.06240401,98208.0,98190.0,0.70827908]
[1732432174058,0.06240401,98208.0,98191.0,0.15]
[1732432176497,0.06326331,98208.0,98191.0,0.15]
[1732432199567,0.06326331,98208.0,98191.0,0.151718]
[1732432200910,0.06326331,98208.0,98191.0,0.15100256]
[1732432203684,0.0008593,98208.0,98191.0,0.15100256]
[1732432214464,0.0008593,98208.0,98192.0,0.0459]
[1732432216295,0.00032731,98208.0,98191.0,0.15100256]
[1732432216769,0.0469,98207.0,98191.0,0.15100256]
[1732432232726,0.00032731,98208.0,98191.0,0.15100256]
[1732432236930,0.00032731,98208.0,98192.0,0.0486]
[1732432237139,0.00032731,98208.0,98194.0,0.1986]
[1732432237367,0.00032731,98208.0,98195.0,0.0486]
[1732432244700,0.00032731,98208.0,98195.0,0.2399131]
[1732432245615,0.00032731,98208.0,98195.0,0.0899131]
[1732432246078,0.00032731,98208.0,98197.0,0.15]
[1732432247858,0.00032731,98208.0,98198.0,0.0486]
[1732432263579,0.00032731,98208.0,98197.0,0.15]
[1732432279452,0.00032731,98208.0,98197.0,0.1517186]
[1732432280272,0.00032731,98208.0,98196.0,1.2837598]
[1732432287052,0.0755,98207.0,98196.0,1.2837598]
[1732432291949,0.0755,98207.0,98196.0,1.2854784]
[1732432297082,0.0755,98207.0,98196.0,1.09840517]
[1732432299550,0.0804,98205.0,98196.0,1.09840517]
[1732432302247,0.0804,98203.0,98196.0,1.09840517]
[1732432302462,0.0486,98202.0,98196.0,1.09840517]
[1732432302710,0.00032731,98208.0,98196.0,1.09840517]
[1732432302711,0.0486,98200.0,98196.0,1.09840517]
[1732432302905,0.0804,98199.0,98196.0,1.09840517]
[1732432304892,0.129,98197.0,98196.0,1.09840517]
[1732432328912,0.1298594,98197.0,98196.0,1.09840517]
[1732432332086,0.0812594,98197.0,98196.0,1.09840517]
[1732432332562,0.0008594,98197.0,98196.0,1.09840517]
[1732432336727,0.0008594,98207.0,98196.0,1.09840517]
[1732432336728,0.0008594,98207.0,98197.0,0.1968]
[1732432336963,0.0008594,98207.0,98199.0,0.15]
[1732432338082,0.0008594,98207.0,98197.0,0.1968]
[1732432338305,0.0008594,98207.0,98199.0,0.15]
[1732432338772,0.0008594,98207.0,98197.0,0.1968]
[1732432339025,0.0008594,98207.0,98199.0,0.15]
[1732432340171,0.0008594,98207.0,98197.0,0.1968]
[1732432340438,0.0008594,98207.0,98199.0,0.15]
[1732432340658,0.0008594,98207.0,98197.0,0.1968]
[1732432341093,0.0008594,98207.0,98199.0,0.15]
[1732432342151,0.1316,98206.0,98197.0,0.15]
[1732432346157,0.13076342,98206.0,98197.0,0.15]
[1732432352864,0.13162282,98206.0,98197.0,0.15]
[1732432365076,0.13162282,98206.0,98197.0,0.1517186]